Cogmind - Beta 16 @@@ ROGUE MODE // 2025.10.28 @ 19:04:09 Player: Not_Jesus8 Result: Destroyed by IY-OKF(R) with Subdweller Beam Cannon Performance ------------- Evolutions (0) 0 Regions Visited (2) 400 Robots Destroyed (22) 110 Value Destroyed (611) 611 Prototype IDs (0) 0 Alien Tech Used (0) 0 Bonus (0) 0 TOTAL SCORE: 1121 Bonus ------- None Cogmind --------- Core Integrity 0/250 Matter 67/300 Energy 98/100 System Corruption 0% Temperature Cool (9) Movement Rolling (80) Location -10/Subcaves Parts ------- > --- POWER (1) -------- (None) > --- PROPULSION (2) --- Wheel Wheel > --- UTILITY (2) ------ Small Storage Unit Hardened Light Armor Plating > --- WEAPON (2) ------- Heavy Battle Rifle Grenade Launcher > --- INVENTORY (8) ---- Large Matter Pod (59) Improved Terrain Scanner Improved Terrain Scanner Seismic Detector Subdweller Beam Cannon Battle Rifle Mining Laser Peak State ------------ > --- POWER ------------ Light Nuclear Core > --- PROPULSION ------- Subdweller Monowheel Subdweller Monowheel > --- UTILITY ---------- Small Storage Unit Hardened Light Armor Plating > --- WEAPON ----------- Heavy Battle Rifle Grenade Launcher > --- INVENTORY -------- Wheel Large Matter Pod Improved Terrain Scanner Improved Terrain Scanner Seismic Detector Mining Laser [Rating: 16] Favorites ----------- Power Light Nuclear Core Engine Light Ion Engine Power Core Light Nuclear Core Propulsion Wheel Wheel Wheel Utility Small Storage Unit Device Seismic Detector Storage Small Storage Unit Protection Hardened Light Armor Plating Weapon Grenade Launcher Energy Gun Medium Laser Energy Cannon Subdweller Beam Cannon Ballistic Gun Autogun Launcher Grenade Launcher Build | -11 -10 -10 ------- Run | Yrd Mat Sub Slots Evolved . | . . . Power . | . . . Propulsion . | . . . Utility . | . . . Weapon . | . . . Parts Attached 22 | 8 2 12 Power 4 | 1 . 3 Engine 2 | 1 . 1 Core 2 | . . 2 Reactor . | . . . Propulsion 6 | 2 . 4 Treads . | . . . Leg . | . . . Wheel 6 | 2 . 4 Hover . | . . . Flight . | . . . Utility 3 | 2 . 1 Device 1 | 1 . . Storage 1 | 1 . . Processor . | . . . Hackware . | . . . Protection 1 | . . 1 Artifact . | . . . Weapon 9 | 3 2 4 Energy Gun 2 | 2 . . Energy Cannon 1 | . . 1 Ballistic Gun 5 | 1 2 2 Ballistic Cannon . | . . . Launcher 1 | . . 1 Special Weapon . | . . . Impact Weapon . | . . . Slashing Weapon . | . . . Piercing Weapon . | . . . Special Melee Weapon . | . . . Unidentified Prototypes . | . . . Parts Lost 6 | . . 6 Power 3 | . . 3 Propulsion 2 | . . 2 Utility 1 | . . 1 Weapon . | . . . Highest Loss Streak 1 | . . 1 To Critical Strikes . | . . . Average Backups 6 | 1 7 6 Power . | . . . Propulsion . | . 1 . Utility 3 | . 4 4 Weapon 1 | . 1 1 Tool/Special . | . . . Unused Backups 8 | 1 . 7 Power . | . . . Propulsion 1 | 1 . . Utility 4 | . . 4 Weapon 3 | . . 3 Tool/Special . | . . . Average Slot Usage (%) 94 | . 100 93 Engine 4 | . 14 2 Core 7 | . . 9 Wheel 25 | . 28 25 Device 4 | . 14 3 Storage 14 | . 14 14 Protection 7 | . . 9 Energy Gun 1 | . 10 . Energy Cannon 1 | . . 1 Ballistic Gun 17 | . 17 17 Launcher 7 | . . 9 Peak Build Rating 16 | 8 10 16 Average Rating 11 | 5 9 12 On Entrance 6 | . 8 10 Avg Prop Armor Cover (%) 3 | . . 3 Naked Turns . | . . . Heaviest Build 22 | 12 15 22 Greatest Support 40 | 20 20 40 Greatest Overweight (x) 2 | . . 2 Average Overweight (x) . | . . . Largest Inventory Capacity 8 | 8 8 8 Average Capacity 7 | 7 8 8 Most Carried 8 | 6 8 8 Average Carried 5 | 1 7 6 Final Capacity 8 | 8 8 8 Final Carried 8 | 6 8 7 Class Distribution -------------------- 100% | Mutant Dominant Class ---------------- Mutant | -10/Materials Mutant | -10/Subcaves Resources | -11 -10 -10 ----------- Run | Yrd Mat Sub Matter Collected 638 | 280 . 358 Remotely . | . . . Salvage Created 772 | 191 . 581 Parts 48 | 13 . 35 Haulers Intercepted . | . . . Recyclers Shooed . | . . . Parts Field Recycled . | . . . Retrieved Matter . | . . . Parts Self-Destructed 10 | . . 10 Prevented . | . . . Parts Restored . | . . . Kills | -11 -10 -10 ------- Run | Yrd Mat Sub Combat Hostiles Destroyed 14 | . . 14 Guns 7 | . . 7 Cannons 2 | . . 2 AOE 5 | . . 5 Classes Destroyed 6 | 3 . 3 Worker 2 | 2 . . Tunneler 5 | 5 . . Recycler 1 | 1 . . Grunt 3 | . . 3 Cobbler 1 | . . 1 Subdweller 11 | . . 11 Best Kill Streak 8 | 8 . 2 Combat Bots Only 2 | . . 2 Max Kills in Single Turn 1 | 1 . 1 Gunslinging . | . . . Exploded 1 | . . 1 Melee . | . . . Uniques/NPCs Destroyed . | . . . Combat | -11 -10 -10 -------- Run | Yrd Mat Sub Hostile Shots Fired 67 | . . 67 Missed 17 | . . 17 Hits 50 | . . 50 Projectile 50 | . . 50 Critical Strikes 3 | . . 3 Damage Taken 894 | . . 894 Core 257 | . . 257 Absorbed by Shields . | . . . Core Remaining (%) 100 | 100 . . Volleys Fired 75 | 18 . 57 Largest 2 | 2 . 2 Hottest 110 | 90 . 110 Shots Fired 125 | 36 . 89 Gun 98 | 36 . 62 Cannon 5 | . . 5 Launcher 22 | . . 22 Special . | . . . Kinetic 62 | . . 62 Thermal 41 | 36 . 5 Explosive 22 | . . 22 Electromagnetic . | . . . Robot Hit Streak 10 | 8 . 10 Robot Miss Streak 3 | 3 . 2 Penetration Max . | . . . Secondary Targets . | . . . Shots Hit Robots 88 | 24 . 64 Core Hits 38 | 9 . 29 Critical Kills . | . . . Critical Parts Destroyed . | . . . Critical Strikes 3 | 3 . . Burn 3 | 3 . . Melee Attacks . | . . . Impact . | . . . Slashing . | . . . Piercing . | . . . Sneak Attacks . | . . . Combat Hostiles . | . . . Follow-up Attacks . | . . . Damage Inflicted 2041 | 300 . 1741 Guns 1115 | 300 . 815 Cannons 112 | . . 112 Explosions 814 | . . 814 Melee . | . . . Ramming . | . . . Kinetic 815 | . . 815 Thermal 412 | 300 . 112 Explosive 814 | . . 814 Electromagnetic . | . . . Impact . | . . . Slashing . | . . . Piercing . | . . . Highest Corruption . | . . . Average Corruption . | . . . Corruption Purged . | . . . Corruption Blocked . | . . . Overload Shots . | . . . Overflow Damage . | . . . Projectiles . | . . . Explosions . | . . . Melee . | . . . Knockbacks . | . . . Impact . | . . . Kinetic . | . . . Secondary . | . . . Self-Inflicted Damage 5 | . . 5 Shots 1 | . . 1 Rammed . | . . . Targets Rammed . | . . . Kicked . | . . . Crushed . | . . . Highest Temperature 240 | 240 . 4 Average Temperature 101 | 104 . 3 Received Heat Transfer 276 | . . 276 Siege Activations . | . . . Martial Activations . | . . . Shielding Activations . | . . . Robots Disrupted . | . . . Combat Hostiles . | . . . Robots Corrupted . | . . . Combat Hostiles . | . . . Parts Fried . | . . . Impact Corruptions . | . . . Robots Melted . | . . . Combat Hostiles . | . . . Parts Melted 3 | 3 . . Heat Transferred 1163 | 1015 . 148 Parts Sabotaged . | . . . Parts Stolen . | . . . Parts Stripped . | . . . Power Chain Reactions . | . . . Alert | -11 -10 -10 ------- Run | Yrd Mat Sub Maximum Alert Level . | . . . Low Security (%) 100 | 100 100 . Level 1 . | . . . Level 2 . | . . . Level 3 . | . . . Level 4 . | . . . Level 5 . | . . . High Security . | . . . Max Security . | . . . Peak Influence 15 | 15 9 . Initial . | . . . Average 1 | 2 . . Influence Increases 133 | 40 13 80 Destroy 0b10 Robot/C 60 | . . 60 Destroy 0b10 Robot/NC 40 | 40 . . Destroy Leader 20 | . . 20 Successful Hack 13 | . 13 . Influence Decreases 133 | 40 13 80 Time Decay 123 | 40 13 70 Lost Part 10 | . . 10 Squads Dispatched 2 | . 2 . Investigation 2 | . 2 . Extermination . | . . . Reinforcement . | . . . Assault . | . . . Garrison . | . . . Intercept . | . . . Searches Triggered . | . . . Construction Impeded . | . . . Haulers Reinforced . | . . . Active Scanning Responses . | . . . Cargo Convoy Interrupts . | . . . Stealth | -11 -10 -10 --------- Run | Yrd Mat Sub Distress Signals . | . . . Communications Jammed . | . . . Distress Signals . | . . . Times Spotted 15 | . . 15 Peak Tracking Total 2 | . . 2 Tactical Retreats . | . . . Traps | -11 -10 -10 ------- Run | Yrd Mat Sub Traps Triggered . | . . . Indirectly . | . . . Trap Hack Attempts . | . . . Triggered . | . . . Disarmed . | . . . Reprogrammed . | . . . Reused . | . . . Traps Extracted . | . . . Installed . | . . . Triggered . | . . . Machines | -11 -10 -10 ---------- Run | Yrd Mat Sub Machines Disabled . | . . . Max in Single Turn . | . . . Machines Repaired . | . . . Machines Dismantled . | . . . Machines Sabotaged . | . . . Overloaded Fab Kills . | . . . Hacking | -11 -10 -10 --------- Run | Yrd Mat Sub Machines Accessed 4 | . 4 . Terminals 4 | . 4 . Fabricators . | . . . Repair Stations . | . . . Recycling Units . | . . . Scanalyzers . | . . . Garrison Access . | . . . Total Hacks 11 | . 11 . Successful 7 | . 7 . Failed 4 | . 4 . Catastrophic . | . . . Database Lockouts . | . . . Manual 11 | . 11 . Terminals 11 | . 11 . Fabricators . | . . . Repair Stations . | . . . Recycling Units . | . . . Scanalyzers . | . . . Garrison Access . | . . . Terminal Hacks 2 | . 2 . Terminal Index 1 | . 1 . Zone Layout 1 | . 1 . Fabricator Hacks . | . . . Repair Station Hacks . | . . . Recycling Unit Hacks . | . . . Scanalyzer . | . . . Garrison Access Hacks . | . . . Unauthorized Hacks 5 | . 5 . Terminals 5 | . 5 . Botnet 4 | . 4 . Operators 1 | . 1 . Fabricators . | . . . Repair Stations . | . . . Recycling Units . | . . . Scanalyzers . | . . . Garrison Access . | . . . Data Cores Recovered . | . . . Used . | . . . Hacking Detections 4 | . 4 . Full Trace Events 2 | . 2 . Feedback Events . | . . . Feedback Blocked . | . . . Robot Schematics Acquired . | . . . Robots Built . | . . . Authchips . | . . . Time . | . . . Total Robot Build Rating . | . . . Part Schematics Acquired . | . . . Parts Built . | . . . Authchips . | . . . Time . | . . . Total Part Build Rating . | . . . Part Studies Acquired . | . . . Parts Repaired . | . . . Time . | . . . Parts Recycled . | . . . Recycled Matter . | . . . Retrieved Matter . | . . . Retrieved Components . | . . . Parts Scanalyzed . | . . . Part Schematics Acquired . | . . . Parts Damaged . | . . . Bothacking | -11 -10 -10 ------------ Run | Yrd Mat Sub Used RIF Installer . | . . . Robots Hacked . | . . . Non-combat . | . . . Combat . | . . . Robot Hacks Applied . | . . . Relay Couplers Released . | . . . Fabnet Peak Effective % . | . . . Robots Rewired . | . . . Allies Hacked . | . . . Hacks Repelled . | . . . Allies | -11 -10 -10 -------- Run | Yrd Mat Sub Total Allies . | . . . Largest Group . | . . . Highest-Rated Group . | . . . Highest-Rated Ally . | . . . Total Orders . | . . . Ally Attacks . | . . . Total Damage . | . . . Kills . | . . . Allies Corrupted . | . . . Allies Melted . | . . . Intel | -11 -10 -10 ------- Run | Yrd Mat Sub Active Infowar (turns) 431 | 78 153 200 Seismic 431 | 78 153 200 Robot Analysis Total . | . . . Derelict Logs Recovered 1 | . . 1 Drone Launches . | . . . Drone Recoveries . | . . . Exploration | -11 -10 -10 ------------- Run | Yrd Mat Sub Turns Passed 1262 | 188 153 921 Spaces Moved 1014 | 143 137 734 Core 1 | 1 . . Treads . | . . . Legs . | . . . Wheels 1013 | 142 137 734 Hover . | . . . Flight . | . . . Fastest Speed 50 | 50 80 80 Average Speed 93 | 79 80 98 Slowest Speed 120 | 80 80 120 Overloaded Moves . | . . . Propulsion Burnouts . | . . . Robots Hopped . | . . . Potential Cave-ins . | . . . Cave-ins Triggered . | . . . Exploration Rate (%) 26 | 5 19 54 Regions Visited 2 Branch Regions 1 Pre-discovered Areas . | . . . Known Exits Taken . | . . . Unknown Exits Taken 2 | 1 1 . Scrap Searched . | . . . Spaces Dug . | . . . Terrain Destroyed 94 | . . 94 Melee . | . . . Projectile 1 | . . 1 AOE 93 | . . 93 Terrain Rammed . | . . . Walls Destroyed . | . . . Machines Disabled . | . . . Actions | -11 -10 -10 --------- Run | Yrd Mat Sub Total 1211 | 178 180 853 Wait 77 | . 36 41 Move 1012 | 142 136 734 Hop . | . . . Pick Up 13 | 8 3 2 Fast Attach 17 | 7 2 8 Attach 4 | 1 . 3 Detach . | . . . Swap 1 | . . 1 Drop 12 | 2 3 7 Fire 75 | 18 . 57 Melee . | . . . Ram . | . . . Kick . | . . . Crush . | . . . Escape Stasis . | . . . Rewire . | . . . Trap . | . . . Miscellaneous . | . . . Route ------- -11/Scrapyard -10/Materials (discovered 2 exits: [*Min] / [*Sub]) -10/Subcaves History --------- Turn | Location | Event 19 | -11/Scrapyard | Discovered new exit (range 16) 189 | -11/Scrapyard | Entered Materials 269 | -10/Materials | Discovered new exit (range 8) 305 | -10/Materials | Build established: Mutant 321 | -10/Materials | Discovered new exit (range 6) 342 | -10/Materials | Entered Subcaves 343 | -10/Subcaves | Approached by a straggling Scientist 436 | -10/Subcaves | Shifting Twisted Machinery released Piercing Trap 520 | -10/Subcaves | Core integrity fell below 50% 647 | -10/Subcaves | Core integrity fell below 20% 989 | -10/Subcaves | Shifting Twisted Machinery released Battle Rifle 1022 | -10/Subcaves | Shifting Twisted Machinery released Sub. Beam Cannon 1202 | -10/Subcaves | Learned 2 Materials zone layouts 1251 | -10/Subcaves | Ambushed by Subdweller buried in earth 1263 | -10/Subcaves | Destroyed by IY-OKF(R) with Subdweller Beam Cannon Last Messages --------------- 00918_ V8-FF5(R) destroyed. 00922_ TJ-O8R(R) destroyed. 00923_ The unstable cave ceiling collapses. 00930_ Acquired Wheel. 00931_ Acquired 9 matter. 00944_ The unstable cave ceiling collapses. Battle Rifle falls loose from the Twisted Machinery. 00999_ Acquired Battle Rifle. Sub. Beam Cannon falls loose from the Twisted Machinery. 01044_ Acquired Sub. Beam Cannon. 01166_ JV-M7P(R): "YOUGO!" 01202_ Acquired derelict log, extracted data. Data stored: Materials zone layouts (x2). 01249_ Lgt. Nuclear Core destroyed. 01251_ QT-YGN(R) destroyed. [Achievement: Do Not Disturb] 01252_ IY-OKF(R): "SLEEPOVER!" 01256_ The unstable cave ceiling collapses. Map ----- +----------------------------------------------------+ | ??### ##??? # #????????? #????????????? | | ????# #??## #??????????####????????????? | | ????# #???# ##??????????????????????????? | | ????## #???# #??????????????????????????? | | #???## ###???# #??????????????????????????? | | ##??# ##????? ##??????????????????????????? | | #??## #?????? #???????????????????????????? | | #?# ##?????? ???????????????????????????? | | ##### #?????? ???????????????????????????? | | #?????? % ??????????????????????????? | | #??????### #?????????????????????????? | | # # ##?????????# % #?????????????????????????? | | ##### #####???????## % #?????????????????????????? | | #??# # ####????## ##????# ??????????????????? | | #??## #???## ##??# "??????????????????? | | #???## ## ######% #?? ""??????????????????? | | #????###### ## #??# ???????????????????? | | ?????# # # ## % #??? ???????????????????? | | ???### #????# #???????????????????? | | ???# #????## ##??????????????????? | | # # #????# #??????????????????? | | # # # # ##???# ##?????????????????? | | #??#### ##### "#?????????????????? | | ???### # # ""#?????????????????? | | #### # "##?????????????????? | | # # @ "#??????????????????? | | # # #### ## ## #??????????????????? | | ! #??###### #### #?????????????????? | | ##??????# ## # #????????????????? | | & #??????# ###### & #???????????????? | | # #??????## #??# " ?#???????????????? | | # #???????###??# #???????????????? | | ##### ##????????????# R ""???????????? | | ????# ##????????????# ""???????????? | | ????####???????????### "???????????? | | ???????????????????# ## "???????????? | | ??????????????????# ##?### ## ## ???????????? | | ??????????????????#####?????##?# ##?????????????? | | ?????????????????????????????????????????????????? | | ?????????????????????????????????????????????????? | | ?????????????????????????????????????????????????? | | ?????????????????????????????????????????????????? | | ?????????????????????????????????????????????????? | | ?????????????????????????????????????????????????? | | ?????????????????????????????????????????????????? | | ?????????????????????????????????????????????????? | | ?????????????????????????????????????????????????? | | ?????????????????????????????????????????????????? | | ?????????????????????????????????????????????????? | | ?????????????????????????????????????????????????? | +----------------------------------------------------+ Best States ------------- Heat Dissipation 25 Energy Generation 14 Energy Capacity 160 Matter Stores 300 Matter Capacity 300 Sight Range 16 Terrain Scan Density 10 Armor Coverage 150 Evasion (%) 44 Item Schematics ----------------- None Robot Schematics ------------------ None Fabricated ------------ Nothing Repaired ---------- Nothing Studied --------- None Alien Tech Used ----------------- None Achievements -------------- Art Critic Do Not Disturb Challenges ------------ None Game ------ Seed MasterTrapTorch Manual? 0 Play Time 00:11:16 Cumulative 14.3 hours Start 2025.10.28 @ 18:53:01 End 2025.10.28 @ 19:04:09 Sessions 1 Manual Loads 0 Difficulty Rogue Special Mode None Game No. 26 Rogue 26 Adventurer 0 Explorer 0 Win Type - Total 1 Types 1/0/0/0/0/0/0/0/0/0 Lore% 34 Gallery% 21 Achievement% 18 Wizard Run 0 Options --------- Layout 1 ASCII 0 Keyboard 1 Movement Arrows Keybinds 0 Fullscreen 1 Font 16/SmallcapsGlow Map View 25x27 Zoom Use 44% Tactical HUD 1 Map Filters NONE Filters NONE Steam 1 RUN: 9792025f-ba6f-42dc-bba5-fa2a445953d5